fUSD/lending_fUSD_20251123
["ID","MTS","AMOUNT","RATE_DAILY","PERIOD"]
[394732832,1763919135632,-519.08153598,0.00039452,8]
[394732833,1763919135642,-521.36,0.00039452,8]
[394732834,1763919135652,-500.0,0.00039452,8]
[394732835,1763919135661,-500.0,0.00039452,8]
[394732836,1763919135671,-618.02,0.00039452,8]
[394732837,1763919135680,-640.46,0.00039452,8]
[394732838,1763919135690,-500.0,0.00039452,8]
[394732839,1763919135699,-2235.07,0.00039452,8]
[394732840,1763919135709,-500.0,0.00039452,8]
[394732841,1763919135719,-871.62,0.00039452,8]
[394732842,1763919135728,-500.0,0.00039452,8]
[394732843,1763919135737,-500.0,0.00039452,8]
[394732844,1763919135746,-500.0,0.00039452,8]
[394732845,1763919135756,-500.0,0.00039452,8]
[394732846,1763919135765,-818.7,0.00039452,8]
[394732847,1763919135775,-1242.44,0.00039452,8]
[394732848,1763919135785,-727.2,0.00039452,8]
[394732849,1763919135795,-500.0,0.00039452,8]
[394732850,1763919135804,-1370.31,0.00039452,8]
[394732851,1763919135813,-1545.53,0.00039452,8]
[394732852,1763919135822,-500.0,0.00039452,8]
[394732853,1763919135832,-500.0,0.00039452,8]
[394732854,1763919135841,-500.0,0.00039452,8]
[394732855,1763919135850,-946.34,0.00039452,8]
[394732856,1763919135860,-930.5,0.00039452,8]
[394732857,1763919135869,-500.0,0.00039452,8]
[394732858,1763919135878,-936.96,0.00039452,8]
[394732859,1763919135888,-561.54789417,0.00039452,8]
[394732860,1763919135899,-500.0,0.00039452,8]
[394732861,1763919135910,-500.0,0.00039452,8]
[394732862,1763919135919,-500.0,0.00039452,8]
[394732863,1763919135929,-922.05,0.00039452,8]
[394732864,1763919135939,-500.0,0.00039452,8]
[394732865,1763919135948,-500.0,0.00039452,8]
[394732866,1763919135957,-519.2,0.00039452,8]
[394732867,1763919135967,-500.0,0.00039452,8]
[394732868,1763919135976,-1094.34,0.00039452,8]
[394732869,1763919135986,-804.19,0.00039452,8]
[394732870,1763919135995,-1379.83,0.00039452,8]
[394732871,1763919136006,-500.0,0.00039452,8]
[394732872,1763919136021,-650.29,0.00039452,8]
[394732873,1763919136030,-500.0,0.00039452,8]
[394732874,1763919136040,-1008.98,0.00039452,8]
[394732875,1763919136051,-333.57256902,0.00039468,5]
[394732876,1763919136061,-162.99,0.00039477,30]
[394732877,1763919136071,-239.84119403,0.00039498,30]
[394732878,1763919136081,-1237.6831466,0.000395,60]
[394732879,1763919136091,-250.0,0.00039521,5]
[394732880,1763919136102,-1000.0,0.00039559,7]
[394732881,1763919136111,-955.21,0.00039587,2]
[394732882,1763919136121,-701.46,0.00039587,2]
[394732883,1763919136130,-479.01,0.00039587,2]
[394732884,1763919136139,-701.46,0.00039587,2]
[394732885,1763919136149,-701.46,0.00039587,2]
[394732886,1763919136159,-479.01,0.00039587,2]
[394732887,1763919136170,-701.46,0.00039587,2]
[394732888,1763919136179,-701.46,0.00039587,2]
[394732889,1763919136188,-701.46,0.00039587,2]
[394732890,1763919136198,-701.46,0.00039587,2]
[394732891,1763919136207,-701.46,0.00039587,2]
[394732892,1763919136216,-594.78,0.00039587,2]
[394732893,1763919136226,-479.01,0.00039587,2]
[394732894,1763919136235,-479.01,0.00039587,2]
[394732895,1763919136245,-479.01,0.00039587,2]
[394732896,1763919136255,-479.01,0.00039587,2]
[394732897,1763919136265,-957.04,0.00039587,2]
[394732898,1763919136275,-500.0,0.00039589,2]
[394732899,1763919136285,-629.0,0.00039589,2]
[394732900,1763919136295,-1376.0,0.00039589,2]
[394732901,1763919136305,-350.0,0.00039596,5]
[394732902,1763919136314,-1376.0,0.00039602,20]
[394732903,1763919136324,-531.44794408,0.00039626,2]
[394732904,1763919136334,-788.84,0.00039654,2]
[394732905,1763919136344,-231.28369723,0.00039687,30]
[394732906,1763919136354,-5718.49,0.000397,14]
[394732907,1763919136365,-243.29,0.000397,30]
[394732908,1763919136374,-44836.0,0.00039708,2]
[394732909,1763919136384,-514.67246063,0.00039726,2]
[394732910,1763919136393,-629.0,0.00039726,2]
[394732911,1763919136403,-1376.0,0.00039726,2]
[394732912,1763919136413,-507.538495,0.00039726,8]
[394732913,1763919136423,-322.861803,0.00039726,8]
[394732914,1763919136432,-589.663941,0.00039726,8]
[394732915,1763919136442,-500.0,0.00039726,8]
[394732916,1763919136460,-501.23591629,0.00039726,8]
[394732917,1763919136470,-300.0,0.00039726,2]
[394732918,1763919136479,-500.0,0.00039726,8]
[394732919,1763919136489,-500.0,0.00039726,8]
[394732920,1763919136498,-500.0,0.00039726,8]
[394732921,1763919136507,-500.0,0.00039726,8]
[394732922,1763919136516,-500.0,0.00039726,8]
[394732923,1763919136525,-500.0,0.00039726,8]
[394732924,1763919136535,-500.0,0.00039726,8]
[394732925,1763919136545,-500.0,0.00039726,8]
[394732926,1763919136554,-500.0,0.00039726,8]
[394732927,1763919136564,-500.0,0.00039726,8]
[394732928,1763919136573,-500.0,0.00039726,8]
[394732929,1763919136583,-500.0,0.00039726,8]
[394732930,1763919136594,-500.0,0.00039726,8]
[394732931,1763919136604,-500.0,0.00039726,8]
[394732932,1763919136614,-500.0,0.00039726,8]
[394732933,1763919136624,-500.0,0.00039726,8]
[394732934,1763919136634,-500.0,0.00039726,8]
[394732935,1763919136644,-500.0,0.00039726,8]
[394732936,1763919136653,-500.0,0.00039726,8]
[394732937,1763919136663,-500.0,0.00039726,8]
[394732938,1763919136673,-762.97,0.00039726,8]
[394732939,1763919136682,-500.0,0.00039726,8]
[394732940,1763919136691,-756.55,0.00039726,8]
[394732941,1763919136703,-500.0,0.00039726,8]
[394732942,1763919136713,-500.0,0.00039726,8]
[394732943,1763919136723,-500.0,0.00039726,8]
[394732944,1763919136733,-500.0,0.00039726,8]
[394732945,1763919136742,-500.0,0.00039726,8]
[394732946,1763919136752,-500.0,0.00039726,8]
[394732947,1763919136762,-500.0,0.00039726,8]
[394732948,1763919136771,-500.0,0.00039726,8]
[394732949,1763919136781,-500.0,0.00039726,8]
[394732950,1763919136791,-186.42097891,0.00039726,8]
[394732951,1763919136801,-500.0,0.00039726,8]
[394732952,1763919136810,-500.0,0.00039726,8]
[394732953,1763919136820,-547.25,0.00039726,8]
[394732954,1763919136831,-500.0,0.00039726,8]
[394732955,1763919136841,-1013.17,0.00039726,8]
[394732956,1763919136851,-500.0,0.00039726,8]
[394732957,1763919136861,-500.0,0.00039726,8]
[394732958,1763919136870,-1181.14,0.00039726,8]
[394732959,1763919136879,-1117.53,0.00039726,8]
[394732960,1763919136890,-544.85,0.00039726,8]
[394732961,1763919136899,-507.47,0.00039726,8]
[394732962,1763919136908,-500.0,0.00039726,8]
[394732963,1763919136918,-500.0,0.00039726,8]
[394732964,1763919136928,-500.0,0.00039726,8]
[394732965,1763919136937,-500.0,0.00039726,8]
[394732966,1763919136947,-555.05844518,0.00039726,8]
[394732967,1763919136957,-500.0,0.00039726,8]
[394732968,1763919136967,-500.0,0.00039726,8]
[394732969,1763919136976,-858.31,0.00039726,8]
[394732970,1763919136986,-500.0,0.00039726,8]
[394732971,1763919136995,-500.0,0.00039726,8]
[394732972,1763919137006,-500.0,0.00039726,8]
[394732973,1763919137018,-600.0,0.00039726,8]
[394732974,1763919137027,-500.0,0.00039726,8]
[394732975,1763919137037,-301.82932731,0.00039726,8]
[394732976,1763919137046,-930.02,0.00039726,8]
[394732977,1763919137057,-500.0,0.00039726,8]
[394732978,1763919137066,-500.0,0.00039726,8]
[394732979,1763919137076,-500.0,0.00039726,8]
[394732980,1763919137086,-500.0,0.00039726,8]
[394732981,1763919137095,-199.55075216,0.00039726,8]
[394732982,1763919137104,-500.0,0.00039726,8]
[394732983,1763919137117,-500.0,0.00039726,8]
[394732984,1763919137130,-500.0,0.00039726,8]
[394732985,1763919137144,-500.0,0.00039726,8]
[394732986,1763919137153,-331.51471367,0.00039726,8]
[394732987,1763919137162,-500.0,0.00039726,8]
[394732988,1763919137172,-500.0,0.00039726,8]
[394732989,1763919137181,-663.61,0.00039726,8]
[394732990,1763919137191,-500.0,0.00039726,8]
[394732991,1763919137200,-500.0,0.00039726,8]
[394732992,1763919137210,-500.0,0.00039726,8]
[394732993,1763919137219,-500.0,0.00039726,8]
[394732994,1763919137228,-521.83,0.00039726,8]
[394732995,1763919137237,-500.0,0.00039726,8]
[394732996,1763919137247,-500.0,0.00039726,8]
[394732997,1763919137256,-572.45,0.00039726,8]
[394732998,1763919137265,-672.27,0.00039726,8]
[394732999,1763919137274,-500.0,0.00039726,8]
[394733000,1763919137285,-500.0,0.00039726,8]
[394733001,1763919137295,-500.0,0.00039726,8]
[394733002,1763919137305,-358.14418674,0.00039726,8]
[394733003,1763919138238,-165.687197,0.00023078,2]
[394733004,1763919138248,-151.0,0.00023179,2]
[394733005,1763919138257,-649.157379,0.00023538,7]
[394733006,1763919138267,-957.601199,0.00029377,7]
[394733007,1763919138276,-500.0,0.00039178,8]
[394733008,1763919138286,-297.13581326,0.00039726,8]
[394733009,1763919138295,-500.0,0.00039726,8]
[394733010,1763919138304,-500.0,0.00039726,8]
[394733011,1763919138313,-190.76179979,0.00039726,8]
[394733012,1763919138325,-309.23820021,0.00039726,8]
[394733013,1763919138335,-373.38599977,0.00039726,8]
[394733014,1763919139297,-3774.94,0.00018756,2]
[394733015,1763919139307,-1106.296465,0.00023078,2]
[394733016,1763919139316,-649.157379,0.00023078,2]
[394733017,1763919139325,-165.687197,0.00023078,2]
[394733018,1763919139334,-165.687197,0.00023179,2]
[394733019,1763919139343,-165.687197,0.00023179,2]
[394733020,1763919139352,-1106.296465,0.00023179,2]
[394733021,1763919139362,-649.157379,0.00023538,7]
[394733022,1763919139371,-649.157379,0.00023638,7]
[394733023,1763919139380,-1106.296465,0.00023638,7]
[394733024,1763919139390,-151.0,0.00023638,7]
[394733025,1763919139399,-165.687197,0.00023638,7]
[394733026,1763919139408,-649.157379,0.00023638,7]
[394733027,1763919139418,-165.687197,0.00023638,7]
[394733028,1763919139427,-1106.296465,0.00023638,7]
[394733029,1763919139436,-1106.296465,0.00026676,7]
[394733030,1763919139446,-151.0,0.00026676,7]
[394733031,1763919139455,-649.157379,0.00026676,7]
[394733032,1763919139465,-165.687197,0.00026676,7]
[394733033,1763919139475,-649.157379,0.00026676,7]
[394733034,1763919139484,-165.687197,0.00026676,7]
[394733035,1763919139493,-2230.73301839,0.00026882,2]
[394733036,1763919139503,-182.02,0.00026914,2]
[394733037,1763919139512,-1106.296465,0.00029377,7]
[394733038,1763919139522,-649.157379,0.00029377,7]
[394733039,1763919139532,-165.687197,0.00029377,7]
[394733040,1763919139542,-155.815619,0.00029377,7]
[394733041,1763919139553,-649.157379,0.00029377,7]
[394733042,1763919139562,-165.687205,0.00029377,7]
[394733043,1763919139573,-561.0,0.00032914,2]
[394733044,1763919139584,-561.0,0.00035914,2]
[394733045,1763919139594,-150.0,0.00036356,7]
[394733046,1763919139603,-150.0,0.00036904,2]
[394733047,1763919139612,-781.512852,0.000373,26]
[394733048,1763919139621,-500.0,0.000383,26]
[394733049,1763919139630,-500.0,0.00038356,8]
[394733050,1763919139639,-500.0,0.00038356,8]
[394733051,1763919139648,-500.0,0.00038356,8]
[394733052,1763919139657,-1472.88,0.00038356,8]
[394733053,1763919139667,-86.38567774,0.00038548,2]
[394733054,1763919139776,-649.157379,0.00023078,2]
[394733055,1763919139786,-649.157379,0.00023538,7]
[394733056,1763919139796,-1106.296465,0.00026676,7]
[394733057,1763919139805,-205.74103598,0.00032582,15]
[394733058,1763919139815,-83.32432226,0.00038548,2]
[394733059,1763919139824,-177.6,0.00038548,2]
[394733060,1763919139833,-417.4,0.00038548,2]
[394733061,1763919139843,-500.0,0.0003863,8]
[394733062,1763919139853,-500.0,0.0003863,8]
[394733063,1763919139862,-1472.88,0.0003863,8]
[394733064,1763919139873,-500.0,0.00038904,8]
[394733065,1763919139882,-500.0,0.00038904,8]
[394733066,1763919139892,-1472.88,0.00038904,8]
[394733067,1763919139902,-561.0,0.00038914,2]
[394733068,1763919139923,-500.0,0.00039178,2]
[394733069,1763919139932,-500.0,0.00039178,8]
[394733070,1763919139941,-500.0,0.00039178,8]
[394733071,1763919139951,-537.13183691,0.00039452,8]
[394733072,1763919139960,-500.0,0.00039452,2]
[394733073,1763919139969,-500.0,0.00039452,8]
[394733074,1763919139979,-500.0,0.00039452,8]
[394733075,1763919139988,-126.61400023,0.00039726,8]
[394733076,1763919139997,-500.0,0.00039726,8]
[394733077,1763919140007,-500.0,0.00039726,8]
[394733078,1763919140021,-526.62124623,0.00039726,8]
[394733079,1763919140031,-500.0,0.00039726,8]
[394733080,1763919140041,-500.0,0.00039726,8]
[394733081,1763919140051,-500.0,0.00039726,8]
[394733082,1763919140060,-1290.84,0.00039726,8]
[394733083,1763919140070,-500.0,0.00039726,8]
[394733084,1763919140080,-500.0,0.00039726,8]
[394733085,1763919140091,-637.55750849,0.00039726,8]
[394733086,1763919140101,-500.0,0.00039726,8]
[394733087,1763919140112,-500.0,0.00039726,8]
[394733088,1763919140123,-369.35,0.00039726,8]
[394733089,1763919140132,-1137.91567099,0.00039726,8]
[394733090,1763919140145,-298.80432901,0.00039726,8]
[394733091,1763919140155,-500.0,0.00039726,8]
[394733092,1763919140165,-500.0,0.00039726,8]
[394733093,1763919140174,-834.8,0.00039726,8]
[394733094,1763919140184,-500.0,0.00039726,8]
[394733095,1763919140194,-606.88,0.00039726,8]
[394733096,1763919140203,-851.95,0.00039726,8]
[394733097,1763919140213,-513.1,0.00039726,8]
[394733098,1763919140222,-522.41,0.00039726,8]
[394733099,1763919140231,-500.0,0.00039726,8]
[394733100,1763919140241,-500.0,0.00039726,8]
[394733101,1763919140249,-500.0,0.00039726,8]
[394733102,1763919140259,-500.0,0.00039726,8]
[394733103,1763919140269,-500.0,0.00039726,8]
[394733104,1763919140278,-500.0,0.00039726,8]
[394733105,1763919140288,-696.16,0.00039726,8]
[394733106,1763919140298,-500.0,0.00039726,8]
[394733107,1763919140307,-500.0,0.00039726,8]
[394733108,1763919140317,-687.88,0.00039726,8]
[394733109,1763919140326,-500.0,0.00039726,8]
[394733110,1763919140336,-443.8988269,0.00039726,8]
[394733111,1763919140350,-56.1011731,0.00039726,8]
[394733112,1763919140361,-500.0,0.00039726,8]
[394733113,1763919140373,-500.0,0.00039726,8]
[394733114,1763919140383,-500.0,0.00039726,8]
[394733115,1763919140393,-500.0,0.00039726,8]
[394733116,1763919140404,-747.51,0.00039726,8]
[394733117,1763919140414,-287.24601883,0.00039726,8]
[394733118,1763919140472,-0.12482021,0.00039726,8]
[394733119,1763919140548,-0.00130911,0.00039726,8]
[394733120,1763919140563,-212.62785185,0.00039726,8]
[394733121,1763919140573,-515.85505487,0.00039726,8]
[394733122,1763919140583,-288.56668302,0.00039726,8]
[394733123,1763919140615,-378.87943479,0.00029377,7]
[394733124,1763919140627,-727.41702321,0.00029377,7]
[394733125,1763919140637,-500.0,0.00038356,8]
[394733126,1763919140647,-211.43331698,0.00039726,8]
[394733127,1763919140656,-500.0,0.00039726,8]
[394733128,1763919140666,-500.0,0.00039726,8]
[394733129,1763919140675,-500.0,0.00039726,8]
[394733130,1763919140685,-500.0,0.00039726,8]
[394733131,1763919140695,-500.0,0.00039726,8]
[394733132,1763919140705,-500.0,0.00039726,8]
[394733133,1763919140715,-500.0,0.00039726,2]
[394733134,1763919140724,-675.75,0.00039726,8]
[394733135,1763919140734,-500.0,0.00039726,8]
[394733136,1763919140745,-500.0,0.00039726,8]
[394733137,1763919140754,-500.0,0.00039726,8]
[394733138,1763919140765,-781.33,0.00039726,8]
[394733139,1763919140775,-500.0,0.00039726,8]
[394733140,1763919140785,-500.0,0.00039726,8]
[394733141,1763919140796,-618.95,0.00039726,8]
[394733142,1763919140806,-500.0,0.00039726,8]
[394733143,1763919140816,-503.74650547,0.00039726,8]
[394733144,1763919140826,-500.0,0.00039726,8]
[394733145,1763919140837,-676.69,0.00039726,8]
[394733146,1763919140847,-500.0,0.00039726,8]
[394733147,1763919140857,-532.09,0.00039726,8]
[394733148,1763919140867,-500.0,0.00039726,8]
[394733149,1763919140877,-724.17,0.00039726,8]
[394733150,1763919140888,-566.69,0.00039726,8]
[394733151,1763919140898,-611.46,0.00039726,8]
[394733152,1763919140908,-500.0,0.00039726,8]
[394733153,1763919140918,-500.0,0.00039726,8]
[394733154,1763919140927,-500.0,0.00039726,8]
[394733155,1763919140937,-556.52,0.00039726,8]
[394733156,1763919140947,-500.0,0.00039726,8]
[394733157,1763919140956,-500.0,0.00039726,8]
[394733158,1763919140966,-500.0,0.00039726,8]
[394733159,1763919140975,-751.1,0.00039726,8]
[394733160,1763919140985,-744.47,0.00039726,8]
[394733161,1763919140995,-823.76,0.00039726,8]
[394733162,1763919141004,-500.0,0.00039726,8]
[394733163,1763919141016,-593.63,0.00039726,8]
[394733164,1763919141026,-500.0,0.00039726,8]
[394733165,1763919141036,-500.0,0.00039726,8]
[394733166,1763919141046,-500.0,0.00039726,8]
[394733167,1763919141056,-1092.92,0.00039726,8]
[394733168,1763919141065,-500.0,0.00039726,8]
[394733169,1763919141075,-500.0,0.00039726,8]
[394733170,1763919141084,-500.0,0.00039726,8]
[394733171,1763919141096,-983.92,0.00039726,8]
[394733172,1763919141106,-500.0,0.00039726,8]
[394733173,1763919141116,-500.0,0.00039726,8]
[394733174,1763919141126,-500.0,0.00039726,8]
[394733175,1763919141136,-739.34,0.00039726,8]
[394733176,1763919141145,-500.0,0.00039726,8]
[394733177,1763919141154,-500.0,0.00039726,8]
[394733178,1763919141164,-1078.2,0.00039726,8]
[394733179,1763919141174,-293.8610922,0.00039726,2]
[394733180,1763919141184,-212.34384967,0.00039726,8]
[394733181,1763919141510,-649.157379,0.00023638,7]
[394733182,1763919141520,-263.00126365,0.00026676,7]
[394733183,1763919623753,150.0,0.00020591,120]
[394733302,1763920231524,-184.61086334,0.00016806,2]
[394733303,1763920231534,-308.0,0.00016806,2]
[394733304,1763920231544,-300.0,0.00016818,2]
[394733305,1763920231554,-117.24850134,0.00016829,2]
[394733306,1763920231566,-132.75149866,0.00016829,2]
[394733307,1763920231575,-300.0,0.00016851,2]
[394733308,1763920231585,-123.8952492,0.00016851,2]
[394733309,1763920231597,-176.1047508,0.00016851,2]
[394733310,1763920231607,-122.3855726,0.00016852,2]
[394733311,1763920231622,-72.6144274,0.00016852,2]
[394733312,1763920231631,-250.0,0.00016871,2]
[394733313,1763920231640,-21.55728713,0.00016999,2]
[394733314,1763920231652,-301.0,0.00016999,2]
[394733315,1763920231663,-177.44271287,0.00016999,2]
[394733316,1763920231672,-250.0,0.00017,2]
[394733317,1763920231682,-449.75854496,0.0001816,2]
[394733318,1763920231694,-750.24145504,0.0001816,2]
[394733319,1763920231704,-7399.03,0.00018161,2]
[394733320,1763920231714,-195.0,0.00018487,2]
[394733321,1763920231724,-300.0,0.00018487,2]
[394733322,1763920231733,-250.0,0.00018487,2]
[394733323,1763920231743,-195.0,0.00018487,2]
[394733324,1763920231754,-300.0,0.00018487,2]
[394733325,1763920231763,-195.0,0.00018487,2]
[394733326,1763920231774,-195.0,0.00018588,2]
[394733327,1763920231783,-194.89169966,0.00018588,2]
[394733328,1763920231792,-194.61766004,0.00018981,2]
[394733329,1763920231801,-300.0,0.00019,2]
[394733330,1763920231811,-184.61086334,0.00019792,2]
[394733331,1763920231820,-1680.0,0.00019909,2]
[394733332,1763920231831,-166.66,0.00019915,2]
[394733337,1763920232107,-200.0,0.00020315,2]
[394733338,1763920232117,-166.66,0.00020334,2]
[394733339,1763920232127,-999.0,0.00020455,3]
[394733340,1763920232136,-150.0,0.00020591,2]
[394733341,1763920232147,-1196.69,0.00020753,2]
[394733342,1763920232157,-166.66,0.00020754,2]
[394733343,1763920232166,-2340.96,0.00020942,2]
[394733344,1763920232177,-350.0,0.00021,2]
[394733345,1763920232186,-1337.46,0.00021052,2]
[394733346,1763920232195,-166.66,0.00021173,2]
[394733347,1763920232204,-166.66,0.00021592,2]
[394733348,1763920232214,-216.0,0.00021627,2]
[394733349,1763920232223,-216.0,0.00021677,2]
[394733350,1763920232232,-1009.0,0.00021826,2]
[394733353,1763920232242,-216.0,0.00021843,2]
[394733355,1763920232252,-216.0,0.00021856,2]
[394733357,1763920232261,-216.0,0.00021986,2]
[394733359,1763920232270,-166.66,0.00022011,30]
[394733361,1763920232279,-216.0,0.00022073,2]
[394733363,1763920232290,-216.0,0.00022131,2]
[394733364,1763920232300,-216.0,0.00022131,2]
[394733367,1763920232310,-216.0,0.00022183,2]
[394733368,1763920232320,-573.7346,0.00022192,10]
[394733369,1763920232330,-250.0,0.00022206,2]
[394733370,1763920232339,-216.0,0.00022273,2]
[394733371,1763920232347,-216.0,0.00022328,2]
[394733372,1763920232357,-216.0,0.00022371,2]
[394733373,1763920232366,-216.0,0.00022406,2]
[394733374,1763920232375,-216.0,0.00022411,2]
[394733375,1763920232386,-216.0,0.00022454,2]
[394733376,1763920232396,-216.0,0.0002254,2]
[394733377,1763920232404,-184.61086334,0.00022778,2]
[394733378,1763920232413,-205.7823,0.00022878,2]
[394733379,1763920232423,-23335.8788,0.00022878,2]
[394733380,1763920232432,-637.8551,0.00022878,2]
[394733381,1763920232440,-5732.29633994,0.00022878,2]
[394733382,1763920232449,-374.62039945,0.00022878,2]
[394733383,1763920232459,-2500.0,0.00022878,2]
[394733384,1763920232469,-500.0,0.00022973,2]
[394733385,1763920232477,-500.0,0.00022973,2]
[394733386,1763920232486,-280.46189862,0.00022973,2]
[394733387,1763920232495,-1218.45664032,0.00022977,10]
[394733388,1763920232503,-1218.45664031,0.00022977,10]
[394733389,1763920232512,-500.0,0.00022977,2]
[394733390,1763920232521,-500.0,0.00022977,2]
[394733391,1763920232529,-500.0,0.00022977,2]
[394733392,1763920232542,-500.0,0.00022977,2]
[394733393,1763920232551,-500.0,0.00022977,2]
[394733394,1763920232560,-500.0,0.00022977,2]
[394733395,1763920232569,-500.0,0.00022977,2]
[394733396,1763920232578,-500.0,0.00022977,2]
[394733397,1763920232587,-500.0,0.00022977,2]
[394733398,1763920232596,-500.0,0.00022977,2]
[394733399,1763920232606,-500.0,0.00022977,2]
[394733400,1763920232615,-500.0,0.00022977,2]
[394733401,1763920232624,-500.0,0.00022977,2]
[394733402,1763920232633,-500.0,0.00022977,2]
[394733403,1763920232642,-500.0,0.00022977,2]
[394733404,1763920232652,-276.72074788,0.00022977,2]
[394733405,1763920232661,-205.94545364,0.00022977,2]
[394733406,1763920232671,-500.0,0.00022977,2]
[394733407,1763920232680,-214.5866576,0.00022977,2]
[394733408,1763920232690,-500.0,0.00022977,2]
[394733409,1763920232699,-500.0,0.00022977,2]
[394733410,1763920232708,-500.0,0.00022977,2]
[394733411,1763920232718,-500.0,0.00022977,2]
[394733412,1763920232728,-500.0,0.00022977,2]
[394733413,1763920232741,-500.0,0.00022977,2]
[394733414,1763920232750,-500.0,0.00022977,2]
[394733415,1763920232760,-500.0,0.00022977,2]
[394733416,1763920232769,-590.8203937,0.00022977,2]
[394733417,1763920232778,-500.0,0.00022977,2]
[394733418,1763920232788,-500.0,0.00022977,2]
[394733419,1763920232798,-500.0,0.00022977,2]
[394733420,1763920232808,-500.0,0.00022977,2]
[394733421,1763920232818,-500.0,0.00022977,2]
[394733422,1763920232827,-500.0,0.00022977,2]
[394733423,1763920232837,-500.0,0.00022977,2]
[394733424,1763920232846,-500.0,0.00022977,2]
[394733425,1763920232855,-500.0,0.00022977,2]
[394733426,1763920232865,-500.0,0.00022977,2]
[394733427,1763920232874,-500.0,0.00022977,2]
[394733428,1763920232884,-500.0,0.00022977,2]
[394733429,1763920232893,-33362.6037,0.00022978,2]
[394733430,1763920232902,-312226.53846635,0.00022978,2]
[394733431,1763920232915,-25266.22705103,0.00022978,2]
[394733432,1763920232930,-22014.53716049,0.00022978,2]
[394733433,1763920232941,-47919.01473191,0.00022978,2]
[394733434,1763920232960,-925.84284746,0.00022978,2]
[394733435,1763920232973,-12871.20848459,0.00022978,2]
[394733436,1763920232985,-346.84803172,0.00022978,2]
[394733437,1763920233000,-857.11221404,0.00022978,2]
[394733438,1763920233012,-5857.18947571,0.00022978,2]
[394733439,1763920233036,-480.71,0.00022978,2]
[394733440,1763920233047,-1800.0,0.00022978,2]
[394733529,1763920239604,-776.90309751,0.00022978,2]
[394733530,1763920239616,-3349.826451,0.00022978,2]
[394733531,1763920239628,-1404.0,0.00022978,2]
[394733532,1763920239659,-1341.3399984,0.00022978,2]
[394733533,1763920239712,-322562.70198979,0.00022978,2]
[394733534,1763920239722,-32545.35200225,0.00022978,2]
[394733535,1763920239732,-400.0,0.00023,2]
[394733536,1763920239741,-216.0,0.00023113,2]
[394733537,1763920239751,-216.0,0.00023428,2]
[394733538,1763920239761,-216.0,0.00023453,2]
[394733539,1763920239770,-216.0,0.00023475,2]
[394733540,1763920239780,-216.0,0.00023513,2]
[394733541,1763920239790,-457.02634231,0.00023521,2]
[394733542,1763920239799,-502.15487194,0.00023584,2]
[394733543,1763920239808,-491.81969162,0.00023584,2]
[394733544,1763920239818,-216.0,0.00023585,2]
[394733545,1763920239828,-216.0,0.00023623,2]
[394733546,1763920239837,-216.0,0.0002381,2]
[394733547,1763920239847,-216.0,0.00023822,2]
[394733548,1763920239857,-1000.0,0.00024658,2]
[394733549,1763920239866,-5732.29633988,0.00024768,2]
[394733550,1763920239875,-500.0,0.00024799,2]